bitfinex/quotes_BTCUSD_20240629
["timestamp","ask_amount","ask_price","bid_price","bid_amount"]
[1719681975008,10.24008652,61000.0,60999.0,8.10293131]
[1719681976559,10.24008652,61000.0,60999.0,7.87342031]
[1719681976765,10.24008652,61000.0,60999.0,3.8220193]
[1719681977346,10.24008652,61000.0,60999.0,4.0515303]
[1719681977550,10.24008652,61000.0,60999.0,3.96773306]
[1719681979796,10.24008652,61000.0,60999.0,3.96772965]
[1719681980402,10.24008652,61000.0,60999.0,4.18772965]
[1719681981483,10.24008652,61000.0,60999.0,3.95821865]
[1719681982187,10.24008652,61000.0,60999.0,4.18772965]
[1719681982381,10.24008652,61000.0,60999.0,3.95821865]
[1719681983347,10.24008652,61000.0,60999.0,3.95821876]
[1719681984154,10.24008652,61000.0,60999.0,7.87342366]
[1719681985612,10.24008652,61000.0,60999.0,8.10293466]
[1719681986498,10.24008652,61000.0,60999.0,7.9667352]
[1719681986837,10.24008652,61000.0,60999.0,8.10293464]
[1719681987042,10.24008652,61000.0,60999.0,7.9667352]
[1719681987367,10.24008652,61000.0,60999.0,8.10293465]
[1719681987799,10.24008652,61000.0,60999.0,7.88293465]
[1719681988505,10.24008652,61000.0,60999.0,7.95103437]
[1719681989648,10.24008652,61000.0,60999.0,7.7467352]
[1719681989846,10.24008652,61000.0,60999.0,7.95103436]
[1719681990050,9.95455327,61000.0,60999.0,7.95103436]
[1719681990245,9.95455327,61000.0,60999.0,8.17103436]
[1719681990449,9.95455327,61000.0,60999.0,7.95103436]
[1719681991262,9.95455327,61000.0,60999.0,8.17103436]
[1719681992910,9.95455327,61000.0,60999.0,8.44342302]
[1719681993080,9.95455327,61000.0,60999.0,8.17102995]
[1719681993666,9.95455327,61000.0,60999.0,8.56454597]
[1719681993870,9.95455327,61000.0,60999.0,4.60032053]
[1719681994042,9.95455327,61000.0,60999.0,4.82032053]
[1719681994425,9.95455327,61000.0,60999.0,4.86934107]
[1719681994874,9.95455327,61000.0,60999.0,4.64934107]
[1719681996034,9.95455327,61000.0,60999.0,4.17202476]
[1719681996235,9.95455327,61000.0,60999.0,4.64936006]
[1719681996468,9.95455327,61000.0,60999.0,4.17202476]
[1719681996679,9.95455327,61000.0,60999.0,4.60031743]
[1719681997458,9.95455327,61000.0,60999.0,4.67389396]
[1719681998653,9.95455327,61000.0,60999.0,5.03757598]
[1719681999059,9.95455327,61000.0,60999.0,8.95281396]
[1719681999255,9.95455327,61000.0,60999.0,8.61232343]
[1719681999463,9.95455327,61000.0,60999.0,8.97734945]
[1719681999962,9.95455327,61000.0,60999.0,9.19734945]
[1719682001662,9.95455327,61000.0,60999.0,9.0992033]
[1719682002464,9.95455327,61000.0,60999.0,9.2219933]
[1719682003391,9.95455327,61000.0,60999.0,9.09920393]
[1719682005573,9.95455327,61000.0,60999.0,9.7557064]
[1719682005777,9.95455327,61000.0,60999.0,9.75602702]
[1719682006247,9.95455327,61000.0,60999.0,9.756027]
[1719682008473,9.95455327,61000.0,60999.0,9.60836793]
[1719682008659,9.95455327,61000.0,60999.0,9.60836893]
[1719682008900,9.95455327,61000.0,60999.0,8.37532812]
[1719682009102,9.95455327,61000.0,60999.0,9.53207827]
[1719682009304,9.95455327,61000.0,60999.0,9.53207802]
[1719682009505,9.95455327,61000.0,60999.0,9.19158381]
[1719682009653,9.95455327,61000.0,60999.0,9.53208096]
[1719682009861,9.95455327,61000.0,60999.0,9.19158381]
[1719682012208,9.95455327,61000.0,60999.0,9.53212435]
[1719682012598,9.95455327,61000.0,60999.0,9.31212435]
[1719682012781,9.95455327,61000.0,60999.0,9.53212435]
[1719682015206,9.95455327,61000.0,60999.0,9.5321243]
[1719682015412,9.95455327,61000.0,60999.0,9.39592532]
[1719682015629,9.95455327,61000.0,60999.0,9.53212427]
[1719682015832,9.95455327,61000.0,60999.0,9.53212522]
[1719682017351,9.95455327,61000.0,60999.0,9.38438806]
[1719682017621,9.95455327,61000.0,60999.0,9.16438806]
[1719682017839,9.95455327,61000.0,60999.0,9.38438806]
[1719682018415,9.95455327,61000.0,60999.0,8.30723258]
[1719682018621,9.95455327,61000.0,60999.0,9.53212551]
[1719682019028,9.95455327,61000.0,60999.0,9.19162813]
[1719682019590,9.95455327,61000.0,60999.0,7.64923143]
[1719682020145,9.95455327,61000.0,60999.0,6.10573866]
[1719682020586,9.95455327,61000.0,60999.0,6.40953866]
[1719682020791,9.95455327,61000.0,60999.0,8.92242813]
[1719682021003,9.95455327,61000.0,60999.0,7.6975352]
[1719682021187,9.95455327,61000.0,60999.0,8.92243947]
[1719682023885,9.95455327,61000.0,60999.0,8.69292847]
[1719682024033,9.95455327,61000.0,60999.0,8.69293451]
[1719682026868,9.95455327,61000.0,60999.0,8.04552989]
[1719682027070,9.95455327,61000.0,60999.0,7.20670346]
[1719682027432,9.95455327,61000.0,60999.0,7.20671743]
[1719682027637,9.95455327,61000.0,60999.0,7.13861558]
[1719682027841,9.95455327,61000.0,60999.0,7.20671743]
[1719682028268,9.95455327,61000.0,60999.0,9.22171743]
[1719682030030,9.95455327,61000.0,60999.0,9.01741217]
[1719682030226,9.95455327,61000.0,60999.0,8.72181067]
[1719682030425,9.95455327,61000.0,60999.0,9.22171787]
[1719682032031,9.95455327,61000.0,60999.0,8.94721787]
[1719682032228,9.95455327,61000.0,60999.0,9.82839057]
[1719682032377,9.95455327,61000.0,60999.0,5.9358284]
[1719682033556,9.95455327,61000.0,60999.0,5.93582902]
[1719682034214,9.95455327,61000.0,60999.0,5.23582902]
[1719682034618,9.95455327,61000.0,60999.0,5.03582902]
[1719682034789,9.95455327,61000.0,60999.0,5.23582902]
[1719682036951,9.95455327,61000.0,60999.0,5.23582907]
[1719682037204,9.95455327,61000.0,60999.0,5.50402326]
[1719682037416,9.95455327,61000.0,60999.0,5.93556972]
[1719682037617,9.95455327,61000.0,60999.0,9.30363912]
[1719682037763,9.95455327,61000.0,60999.0,10.02813189]
[1719682039148,9.95455327,61000.0,60999.0,9.46012213]
[1719682039370,9.95455327,61000.0,60999.0,10.02813189]
[1719682039580,9.95455327,61000.0,60999.0,9.82813189]
[1719682040810,9.95455327,61000.0,60999.0,10.02813189]
[1719682046452,9.95455327,61000.0,60999.0,9.96002991]
[1719682046596,9.95455327,61000.0,60999.0,10.02813189]
[1719682046798,9.95455327,61000.0,60999.0,9.59632609]
[1719682047008,9.95455327,61000.0,60999.0,10.02813189]
[1719682049193,9.95455327,61000.0,60999.0,9.82813189]
[1719682049349,9.95455327,61000.0,60999.0,10.02813189]
[1719682049546,9.95455327,61000.0,60999.0,8.4857352]
[1719682049986,9.95455327,61000.0,60999.0,6.94224243]
[1719682052694,9.95455327,61000.0,60999.0,6.53908241]
[1719682052932,9.95455327,61000.0,60999.0,6.06746774]
[1719682053184,9.95455327,61000.0,60999.0,8.24607517]
[1719682053435,9.95455327,61000.0,60999.0,10.02813189]
[1719682054642,9.95455327,61000.0,60999.0,9.82813189]
[1719682056113,9.95455327,61000.0,60999.0,9.82813193]
[1719682056367,9.95455327,61000.0,60999.0,9.9643359]
[1719682059311,9.95455327,61000.0,60999.0,9.60063205]
[1719682059569,10.23145327,61000.0,60999.0,9.66033612]
[1719682059795,10.23145327,61000.0,60999.0,7.62332233]
[1719682060036,10.23145327,61000.0,60999.0,8.12326648]
[1719682061541,10.23145327,61000.0,60999.0,8.22173524]
[1719682062012,10.23145327,61000.0,60999.0,7.52173524]
[1719682062261,10.23145327,61000.0,60999.0,7.65277748]
[1719682062511,10.23145327,61000.0,60999.0,7.28904423]
[1719682062765,10.23145327,61000.0,60999.0,7.65276659]
[1719682063739,10.10965327,61000.0,60999.0,7.85276659]
[1719682064435,10.10965327,61000.0,60999.0,7.65276659]
[1719682064849,10.10965327,61000.0,60999.0,8.99625936]
[1719682065061,10.10965327,61000.0,60999.0,9.89625936]
[1719682065062,9.95455327,61000.0,60999.0,9.89625936]
[1719682065671,9.95455327,61000.0,60999.0,9.8962483]
[1719682066748,9.95455327,61000.0,60999.0,10.0962483]
[1719682067103,9.95455327,61000.0,60999.0,10.16435178]
[1719682067325,9.95455327,61000.0,60999.0,9.96435178]
[1719682067992,9.95455327,61000.0,60999.0,10.16435178]
[1719682068194,9.95455327,61000.0,60999.0,9.96435178]
[1719682068944,9.95455327,61000.0,60999.0,9.96434708]
[1719682072075,9.95455327,61000.0,60999.0,9.46442942]
[1719682072318,9.95455327,61000.0,60999.0,9.96434704]
[1719682072530,9.95455327,61000.0,60999.0,9.3963261]
[1719682072735,9.95455327,61000.0,60999.0,9.96434704]
[1719682074348,9.95455327,61000.0,60999.0,9.82814307]
[1719682075088,9.95455327,61000.0,60999.0,9.89193643]
[1719682075287,9.95455327,61000.0,60999.0,10.02814295]
[1719682076409,9.95455327,61000.0,60999.0,6.13558078]
[1719682077440,9.69320907,61000.0,60999.0,6.13558078]
[1719682078404,9.69320907,61000.0,60999.0,6.13555256]
[1719682081108,9.69320907,61000.0,60999.0,5.93125696]
[1719682081339,9.69320907,61000.0,60999.0,6.13555907]
[1719682081543,9.69320907,61000.0,60999.0,6.36507007]
[1719682082295,9.69320907,61000.0,60999.0,10.25763224]
[1719682084089,9.69320907,61000.0,60999.0,10.25761975]
[1719682084299,9.69320907,61000.0,60999.0,10.76678455]
[1719682084512,9.69320907,61000.0,60999.0,10.76677846]
[1719682084935,9.69320907,61000.0,60999.0,10.76677935]
[1719682085391,9.69320907,61000.0,60999.0,10.25761664]
[1719682085587,9.69320907,61000.0,60999.0,10.76677889]
[1719682085789,9.69320907,61000.0,60999.0,10.25761664]
[1719682087107,9.69320907,61000.0,60999.0,9.68963313]
[1719682087319,9.69320907,61000.0,60999.0,10.25761737]
[1719682090300,9.69320907,61000.0,60999.0,9.68963313]
[1719682090500,9.69320907,61000.0,60999.0,10.25761414]
[1719682093595,9.69320907,61000.0,60999.0,10.12141733]
[1719682093803,9.69320907,61000.0,60999.0,10.25761449]
[1719682096638,9.69320907,61000.0,60999.0,10.18951596]
[1719682096850,9.69320907,61000.0,60999.0,10.25761454]
[1719682097070,9.69320907,61000.0,60999.0,9.75773171]
[1719682097286,9.69320907,61000.0,60999.0,10.25065962]
[1719682097504,9.69320907,61000.0,60999.0,10.25761454]
[1719682099922,9.69320907,61000.0,60999.0,10.25761458]
[1719682102371,9.69320907,61000.0,60999.0,10.18311458]
[1719682102572,9.69320907,61000.0,60999.0,10.25761458]
[1719682102948,9.69320907,61000.0,60999.0,9.68963313]
[1719682103154,9.69320907,61000.0,60999.0,10.18952047]
[1719682103564,9.69320907,61000.0,60999.0,9.96000947]
[1719682107861,9.69320907,61000.0,60999.0,10.18952047]
[1719682109509,9.69320907,61000.0,60999.0,10.05332439]
[1719682109717,9.69320907,61000.0,60999.0,10.18952365]
[1719682109922,9.69320907,61000.0,60999.0,10.05332439]
[1719682110162,9.69320907,61000.0,60999.0,10.18952365]
[1719682111170,9.69320907,61000.0,60999.0,9.98952365]
[1719682111324,9.69320907,61000.0,60999.0,10.18952365]
[1719682111945,9.69320907,61000.0,60999.0,9.68551265]
[1719682112099,9.69320907,61000.0,60999.0,9.96001265]
[1719682112499,9.69320907,61000.0,60999.0,9.96003476]
[1719682112704,9.69320907,61000.0,60999.0,9.96003516]
[1719682113808,9.69320907,61000.0,60999.0,9.76003516]
[1719682114009,9.69320907,61000.0,60999.0,9.96003516]
[1719682115770,9.69320907,61000.0,60999.0,9.46012213]
[1719682115977,9.69320907,61000.0,60999.0,9.96003673]
[1719682116379,9.69320907,61000.0,60999.0,9.26003673]
[1719682118021,9.69320907,61000.0,60999.0,8.89632795]
[1719682118230,9.69320907,61000.0,60999.0,9.26002178]
[1719682118436,9.69320907,61000.0,60999.0,9.48953278]
[1719682118834,9.69320907,61000.0,60999.0,9.12583895]
[1719682119056,9.69320907,61000.0,60999.0,9.48953448]
[1719682119263,9.69320907,61000.0,60999.0,10.18953448]
[1719682120511,9.69320907,61000.0,60999.0,9.96002348]
[1719682121555,9.69320907,61000.0,60999.0,10.46919302]
[1719682122117,9.69320907,61000.0,60999.0,9.46012213]
[1719682122322,9.69320907,61000.0,60999.0,10.69869472]
[1719682122520,9.69320907,61000.0,60999.0,9.68963313]
[1719682122733,9.69320907,61000.0,60999.0,10.69869472]
[1719682123189,9.69320907,61000.0,60999.0,10.18952528]
[1719682123569,9.69320907,61000.0,60999.0,10.01672528]
[1719682124503,9.69320907,61000.0,60999.0,10.52589513]
[1719682124702,9.43514419,61000.0,60999.0,10.67360829]
[1719682125251,9.43514419,61000.0,60999.0,9.65303283]
[1719682125484,9.43514419,61000.0,60999.0,10.67359485]
[1719682126114,9.43514419,61000.0,60999.0,10.47359485]
[1719682126365,9.43514419,61000.0,60999.0,10.67359485]
[1719682128631,9.43514419,61000.0,60999.0,10.53739717]
[1719682128807,9.43514419,61000.0,60999.0,10.67359534]
[1719682131768,9.43514419,61000.0,60999.0,10.38968503]
[1719682131977,9.43514419,61000.0,60999.0,10.67359528]
[1719682134487,9.43514419,61000.0,60999.0,10.47359528]
[1719682135064,9.43514419,61000.0,60999.0,9.82599674]
[1719682135269,9.43514419,61000.0,60999.0,10.47359472]
[1719682135685,9.43514419,61000.0,60999.0,10.33739693]
[1719682135911,9.43514419,61000.0,60999.0,10.47359497]
[1719682137440,9.43514419,61000.0,60999.0,10.66637387]
[1719682137849,9.43514419,61000.0,60999.0,10.44637387]
[1719682138020,9.43514419,61000.0,60999.0,10.66637387]
[1719682138220,9.43514419,61000.0,60999.0,10.66636158]
[1719682139779,9.43514419,61000.0,60999.0,10.47358034]
[1719682140974,9.43514419,61000.0,60999.0,10.47358956]
[1719682143831,9.43514419,61000.0,60999.0,9.31683313]
[1719682144043,9.43514419,61000.0,60999.0,10.47359019]
[1719682144432,9.43514419,61000.0,60999.0,10.25359019]
[1719682144665,9.43514419,61000.0,60999.0,10.47359019]
[1719682146007,9.43514419,61000.0,60999.0,10.25359019]
[1719682146208,9.43514419,61000.0,60999.0,10.47359019]
[1719682146728,9.43514419,61000.0,60999.0,9.81671734]
[1719682146948,9.43514419,61000.0,60999.0,9.45102931]
[1719682147151,9.43514419,61000.0,60999.0,9.58723453]
[1719682147358,9.43514419,61000.0,60999.0,9.58723637]
[1719682147552,9.43514419,61000.0,60999.0,9.81674737]
[1719682148882,9.1086844,61000.0,60999.0,9.81674737]
[1719682149986,9.1086844,61000.0,60999.0,9.45303885]
[1719682150186,9.1086844,61000.0,60999.0,9.59673577]
[1719682150390,9.1086844,61000.0,60999.0,9.81673613]
[1719682150714,9.1086844,61000.0,60999.0,9.116736]
[1719682152177,9.1086844,61000.0,60999.0,8.896736]
[1719682152454,9.1086844,61000.0,60999.0,9.116736]
[1719682153423,9.1086844,61000.0,60999.0,8.98053237]
[1719682153608,9.1086844,61000.0,60999.0,9.81673461]
[1719682153819,9.10804845,61000.0,60999.0,9.59673461]
[1719682156878,9.10804845,61000.0,60999.0,9.59673263]
[1719682159886,9.10804845,61000.0,60999.0,9.09683313]
[1719682160133,9.10804845,61000.0,60999.0,9.74413115]
[1719682160318,9.10804845,61000.0,60999.0,9.3804344]
[1719682160456,9.10804845,61000.0,60999.0,9.74412857]
[1719682161998,9.10804845,61000.0,60999.0,9.74222857]
[1719682162119,9.10804845,61000.0,60999.0,9.81672857]
[1719682162995,9.10804845,61000.0,60999.0,9.4530344]
[1719682163197,9.10804845,61000.0,60999.0,9.95292808]
[1719682163422,9.10804845,61000.0,60999.0,9.88482799]
[1719682163785,9.10764218,61000.0,60999.0,9.8167278]
[1719682163980,9.10764218,61000.0,60999.0,9.88483189]
[1719682164722,9.10764218,61000.0,60999.0,9.66483189]
[1719682164922,9.10764218,61000.0,60999.0,6.69525824]
[1719682166257,9.10764218,61000.0,60999.0,5.47037096]
[1719682166457,9.10764218,61000.0,60999.0,6.6952372]
[1719682166886,9.10764218,61000.0,60999.0,7.2880372]
[1719682167110,8.37268911,61000.0,60999.0,8.73562001]
[1719682168345,7.95627704,61000.0,60999.0,8.73362001]
[1719682168549,7.96127704,61000.0,60999.0,8.73462001]
[1719682169206,7.95627704,61000.0,60999.0,8.73353349]
[1719682169416,7.96427704,61000.0,60999.0,7.79458056]
[1719682169640,7.96127704,61000.0,60999.0,8.95227499]
[1719682169837,7.96127704,61000.0,60999.0,8.95327499]
[1719682169992,7.96427704,61000.0,60999.0,8.7353974]
[1719682170202,7.96427704,61000.0,60999.0,8.9532434]
[1719682171347,7.95927704,61000.0,60999.0,8.7343974]
[1719682171744,7.96427704,61000.0,60999.0,8.7353974]
[1719682172195,7.96427704,61000.0,60999.0,12.62795957]
[1719682172370,7.96127704,61000.0,60999.0,12.62695957]
[1719682172625,7.95627704,61000.0,60999.0,11.61703366]
[1719682172841,7.96127704,61000.0,60999.0,12.62694873]
[1719682173063,7.96427704,61000.0,60999.0,11.5509443]
[1719682173235,7.96127704,61000.0,60999.0,12.62694935]
[1719682173652,7.96427704,61000.0,60999.0,12.62794935]
[1719682174622,7.95927704,61000.0,60999.0,12.62694935]
[1719682174847,7.95927704,61000.0,60999.0,12.62794935]
[1719682175076,7.96427704,61000.0,60999.0,12.62794935]
[1719682175869,7.96127704,61000.0,60999.0,11.68612423]
[1719682176078,7.96127704,61000.0,60999.0,12.62694935]
[1719682176220,7.96427704,61000.0,60999.0,12.62794935]
[1719682176899,7.96427704,61000.0,60999.0,12.40794935]
[1719682177309,7.96427704,61000.0,60999.0,12.62794935]
[1719682178988,7.91827704,61000.0,60999.0,12.62796246]
[1719682180332,7.91827704,61000.0,60999.0,12.82796246]
[1719682180333,7.59624504,61000.0,60999.0,12.82796246]
[1719682180530,7.51378309,61000.0,60999.0,9.27411742]
[1719682180731,7.51378309,61000.0,60999.0,9.15311742]
[1719682180947,7.51378309,61000.0,60999.0,8.93540029]
[1719682181088,7.51378309,61000.0,60999.0,9.15303306]
[1719682181933,7.51378309,61000.0,60999.0,7.85838213]
[1719682182258,7.51378309,61000.0,60999.0,9.15295223]
[1719682182464,7.51378309,61000.0,60999.0,8.95295223]
[1719682182670,7.51378309,61000.0,60999.0,9.15295223]
[1719682182871,7.51378309,61000.0,60999.0,8.95295223]
[1719682183668,7.48578309,61000.0,60999.0,8.95295223]
[1719682184423,7.48578309,61000.0,60999.0,8.73532374]
[1719682184846,7.46278309,61000.0,60999.0,8.95295223]
[1719682185034,7.43478309,61000.0,60999.0,8.95295223]
[1719682185265,7.43478309,61000.0,60999.0,8.81673026]
[1719682185463,7.37978309,61000.0,60999.0,8.73532459]
[1719682185686,7.37978309,61000.0,60999.0,7.72646813]
[1719682185874,7.37978309,61000.0,60999.0,8.73532459]
[1719682186254,7.37978309,61000.0,60999.0,9.13848461]
[1719682186458,7.37978309,61000.0,60999.0,12.65052949]
[1719682186677,7.35868609,61000.0,60999.0,12.85052949]
[1719682186912,7.35868609,61000.0,60999.0,12.43052949]
[1719682187076,7.35868609,61000.0,60999.0,12.85052949]
[1719682187484,7.35868609,61000.0,60999.0,12.43052949]
[1719682187688,7.32855609,61000.0,60999.0,12.85052949]
[1719682188043,7.32555609,61000.0,60999.0,12.84852949]
[1719682188213,7.32055609,61000.0,60999.0,12.84852949]
[1719682188414,7.32555609,61000.0,60999.0,12.84952864]
[1719682188557,7.30496609,61000.0,60999.0,12.84952864]
[1719682188757,7.24796609,61000.0,60999.0,12.84952864]
[1719682189605,7.24296609,61000.0,60999.0,12.84852864]
[1719682189811,7.24296609,61000.0,60999.0,13.06606338]
[1719682190028,7.24596609,61000.0,60999.0,12.38602338]
[1719682190160,7.24296609,61000.0,60999.0,16.74284964]
[1719682190613,7.24596609,61000.0,60999.0,16.74384964]
[1719682190814,7.25096609,61000.0,60999.0,16.74484964]
[1719682191035,7.22396609,61000.0,60999.0,16.74484964]
[1719682191680,7.22396609,61000.0,60999.0,16.74478936]
[1719682192133,7.17196609,61000.0,60999.0,16.61640836]
[1719682193559,7.14796609,61000.0,60999.0,16.61640836]
[1719682194597,7.11426609,61000.0,60999.0,16.61640836]
[1719682194808,7.11426609,61000.0,60999.0,16.41216624]
[1719682195010,7.11426609,61000.0,60999.0,16.61641368]
[1719682195384,6.91053655,61000.0,60999.0,16.61641368]
[1719682195620,6.80296655,61000.0,60999.0,17.1270247]
[1719682196026,6.80296655,61000.0,60999.0,13.2118198]
[1719682197169,6.74996655,61000.0,60999.0,13.2118198]
[1719682197813,6.73852174,61000.0,60999.0,13.2118198]
[1719682197952,6.73852174,61000.0,60999.0,12.33918059]
[1719682198167,6.70652174,61000.0,60999.0,13.21079966]
[1719682198380,6.69442174,61000.0,60999.0,13.21179478]
[1719682198576,5.97088174,61000.0,60999.0,13.21179478]
[1719682198785,5.89452674,61000.0,60999.0,13.21179478]
[1719682198990,5.84051874,61000.0,60999.0,14.43430746]
[1719682199191,5.84051874,61000.0,60999.0,16.70084427]
[1719682199399,5.77147438,61000.0,60999.0,13.21079478]
[1719682199601,5.77037009,61000.0,60999.0,13.31439221]
[1719682200210,5.67572589,61000.0,60999.0,14.04153609]
[1719682200613,5.6716216,61000.0,60999.0,14.04153609]
[1719682200903,5.6716216,61000.0,60999.0,14.04146411]
[1719682201116,4.44933054,61000.0,60999.0,14.08944633]
[1719682201321,3.50194924,61000.0,60999.0,14.2074616]
[1719682201519,3.43806924,61000.0,60999.0,13.56431838]
[1719682201669,3.43806924,61000.0,60999.0,14.25618475]
[1719682201871,3.43306924,61000.0,60999.0,14.26648475]
[1719682202120,3.42075637,61000.0,60999.0,14.26648475]
[1719682202326,3.42575637,61000.0,60999.0,14.26748475]
[1719682202540,3.41323091,61000.0,60999.0,13.58581838]
[1719682202877,3.41623091,61000.0,60999.0,13.51231838]
[1719682203142,3.41212662,61000.0,60999.0,13.58681838]
[1719682203420,3.41212662,61000.0,60999.0,13.58681555]
[1719682203856,3.41212662,61000.0,60999.0,13.5388329]
[1719682204060,3.41212662,61000.0,60999.0,13.1293329]
[1719682204466,3.41212662,61000.0,60999.0,12.40218902]
[1719682206531,3.41212662,61000.0,60999.0,12.40221527]
[1719682207783,3.41212662,61000.0,60999.0,17.13642017]
[1719682207980,3.41212662,61000.0,60999.0,14.32130905]
[1719682208175,3.41212662,61000.0,60999.0,18.38530505]
[1719682208591,3.37691804,61000.0,60999.0,18.38530505]
[1719682209049,3.35991804,61000.0,60999.0,18.38530505]
[1719682209262,3.35991804,61000.0,60999.0,17.14014964]
[1719682209641,3.35991804,61000.0,60999.0,17.00396475]
[1719682209881,3.35991804,61000.0,60999.0,17.14011611]
[1719682210063,3.35991804,61000.0,60999.0,16.063337]
[1719682210237,3.35991804,61000.0,60999.0,17.14011612]
[1719682210643,3.35991804,61000.0,60999.0,15.917259]
[1719682210824,3.35991804,61000.0,60999.0,16.99404602]
[1719682212893,3.35991804,61000.0,60999.0,16.12148609]
[1719682213100,3.35991804,61000.0,60999.0,16.99388884]
[1719682213323,3.35991804,61000.0,60999.0,16.86207984]
[1719682213523,3.35991804,61000.0,60999.0,16.87327984]
[1719682213932,3.35706851,61000.0,60999.0,16.87327984]
[1719682214106,3.35706851,61000.0,60999.0,16.67991884]
[1719682214486,3.35706851,61000.0,60999.0,16.55236684]
[1719682215345,3.35706851,61000.0,60999.0,16.14920682]
[1719682216286,3.35706851,61000.0,60999.0,16.1491987]
[1719682219233,3.35706851,61000.0,60999.0,17.39435411]
[1719682219545,3.35706851,61000.0,60999.0,17.39435792]
[1719682220044,3.35706851,61000.0,60999.0,15.26222707]
[1719682220295,3.35706851,61000.0,60999.0,9.81103573]
[1719682220533,3.35706851,61000.0,60999.0,9.30046978]
[1719682220769,3.35706851,61000.0,60999.0,9.7036298]
[1719682220994,3.35206851,61000.0,60999.0,9.29946978]
[1719682221233,3.35406851,61000.0,60999.0,9.29946978]
[1719682221464,3.35406851,61000.0,60999.0,9.39946978]
[1719682221689,3.35706851,61000.0,60999.0,9.40046978]
[1719682222578,3.35706851,61000.0,60999.0,9.40059819]
[1719682222841,3.35706851,61000.0,60999.0,8.52794784]
[1719682223079,3.35706851,61000.0,60999.0,9.4005982]
[1719682224768,3.35706851,61000.0,60999.0,9.8205982]
[1719682225028,3.32390451,61000.0,60999.0,9.8205982]
[1719682225514,3.32390451,61000.0,60999.0,9.17538459]
[1719682225754,3.32390451,61000.0,60999.0,14.15164093]
[1719682226006,3.32390451,61000.0,60999.0,14.55480095]
[1719682227210,3.32390451,61000.0,60999.0,14.66117493]
[1719682227700,3.32390451,61000.0,60999.0,16.66457993]
[1719682227943,3.32390451,61000.0,60999.0,16.54244993]
[1719682228187,3.32390451,61000.0,60999.0,16.10289193]
[1719682228451,3.32390451,61000.0,60999.0,14.54819916]
[1719682228930,3.32390451,61000.0,60999.0,14.54819964]
[1719682229185,3.32390451,61000.0,60999.0,14.21748864]
[1719682229938,3.32390451,61000.0,60999.0,13.90938864]
[1719682230135,3.32390451,61000.0,60999.0,13.54296564]
[1719682230468,3.54400451,61000.0,60999.0,13.04377159]
[1719682230710,3.54400451,61000.0,60999.0,8.84496569]
[1719682230954,3.54400451,61000.0,60999.0,10.83508014]
[1719682231190,3.54400451,61000.0,60999.0,4.24646912]
[1719682231456,3.54400451,61000.0,60999.0,3.32252372]
[1719682232002,3.53600451,61000.0,60999.0,2.77267049]
[1719682232262,3.55000451,61000.0,60999.0,3.27354609]
[1719682235012,3.53600451,61000.0,60999.0,3.57254609]
[1719682235219,3.53600451,61000.0,60999.0,3.69530287]
[1719682235449,3.56400451,61000.0,60999.0,3.24125305]
[1719682235670,3.56400451,61000.0,60999.0,3.14306572]
[1719682235874,3.56400451,61000.0,60999.0,3.21673282]
[1719682236083,3.56400451,61000.0,60999.0,3.96724382]
[1719682236290,3.56400451,61000.0,60999.0,3.40354113]
[1719682236925,3.56400451,61000.0,60999.0,3.08254113]
[1719682237161,3.56400451,61000.0,60999.0,3.00887403]
[1719682238230,3.56400451,61000.0,60999.0,2.87267049]
[1719682238427,3.56400451,61000.0,60999.0,3.05796012]
[1719682239258,3.56400451,61000.0,60999.0,3.00887534]
[1719682240472,3.55000451,61000.0,60999.0,3.00887534]
[1719682240790,3.56400451,61000.0,60999.0,3.00887534]
[1719682241011,3.55000451,61000.0,60999.0,3.00887534]
[1719682241419,3.56400451,61000.0,60999.0,3.00887534]
[1719682241857,3.53600451,61000.0,60999.0,3.00887534]
[1719682242192,3.55000451,61000.0,60999.0,3.00887534]
[1719682242319,3.56400451,61000.0,60999.0,3.00887534]
[1719682245685,3.56400451,61000.0,60999.0,2.98887534]
[1719682245889,3.56400451,61000.0,60999.0,3.00887534]
[1719682246299,3.56400451,61000.0,60999.0,2.98887534]
[1719682246501,3.56400451,61000.0,60999.0,3.00887534]
[1719682246840,3.56400451,61000.0,60999.0,3.20887534]
[1719682247429,3.56400451,61000.0,60999.0,2.98887534]
[1719682247640,3.56400451,61000.0,60999.0,3.00887534]
[1719682247775,3.56400451,61000.0,60999.0,3.00887543]
[1719682248190,3.56400451,61000.0,60999.0,2.87267049]
[1719682248394,3.56400451,61000.0,60999.0,3.00887545]
[1719682250637,3.30693852,61000.0,60999.0,3.00887545]
[1719682250842,3.30693852,61000.0,60999.0,2.87267049]
[1719682251038,3.30693852,61000.0,60999.0,3.00887545]
[1719682254120,3.30693852,61000.0,60999.0,2.87267049]
[1719682254327,3.30693852,61000.0,60999.0,3.00887545]
[1719682256408,3.30693852,61000.0,60999.0,2.98887545]
[1719682256602,3.30693852,61000.0,60999.0,3.00887545]
[1719682258985,3.29293852,61000.0,60999.0,3.00887545]
[1719682260435,3.30693852,61000.0,60999.0,3.00887545]
[1719682260883,3.29293852,61000.0,60999.0,3.00887545]
[1719682261092,3.29293852,61000.0,60999.0,3.00887589]
[1719682261297,3.30693852,61000.0,60999.0,3.00887589]
[1719682261493,3.29293852,61000.0,60999.0,3.00887589]
[1719682262985,3.29293852,61000.0,60999.0,3.00887592]
[1719682263096,3.30693852,61000.0,60999.0,3.00887592]
[1719682263308,3.29293852,61000.0,60999.0,3.00887592]
[1719682263493,3.29293852,61000.0,60999.0,3.20887592]
[1719682263700,3.30693852,61000.0,60999.0,3.20887592]
[1719682263896,3.30693852,61000.0,60999.0,3.00887592]
[1719682264101,3.30693852,61000.0,60999.0,3.20887592]
[1719682264303,3.30693852,61000.0,60999.0,3.00887592]
[1719682264524,3.30693852,61000.0,60999.0,3.05793656]
[1719682264728,3.30693852,61000.0,60999.0,3.25793656]
[1719682264899,3.30693852,61000.0,60999.0,3.05793656]
[1719682265100,3.30693852,61000.0,60999.0,3.00887592]
[1719682265339,3.30693852,61000.0,60999.0,3.20887592]
[1719682265748,3.30693852,61000.0,60999.0,3.00887592]
[1719682266088,3.30693852,61000.0,60999.0,2.87267049]
[1719682266267,3.30693852,61000.0,60999.0,3.28249569]
[1719682266669,3.30693852,61000.0,60999.0,3.08249569]
[1719682266885,3.30693852,61000.0,60999.0,3.28249569]
[1719682267265,3.30693852,61000.0,60999.0,3.44619711]
[1719682267467,3.30693852,61000.0,60999.0,3.64619711]
[1719682267668,3.30693852,61000.0,60999.0,3.44619711]
[1719682267945,3.30693852,61000.0,60999.0,3.24619711]
[1719682268081,3.30693852,61000.0,60999.0,2.87249569]
[1719682269318,3.30693852,61000.0,60999.0,3.23624068]
[1719682271060,3.30693852,61000.0,60999.0,2.7988746]
[1719682271251,3.29871852,61000.0,60999.0,2.87255306]
[1719682272306,3.29871852,61000.0,60999.0,3.23626654]
[1719682272543,3.29871852,61000.0,60999.0,2.79887807]
[1719682272709,3.29871852,61000.0,60999.0,3.23629886]
[1719682272940,3.29871852,61000.0,60999.0,2.66267049]
[1719682273127,3.29871852,61000.0,60999.0,3.23629979]
[1719682273343,3.29871852,61000.0,60999.0,3.16259153]
[1719682274098,3.29871852,61000.0,60999.0,3.26086921]
[1719682274323,3.29871852,61000.0,60999.0,3.27086921]
[1719682275168,3.29871852,61000.0,60999.0,3.29543863]